[Event "Polgar Challenge 2021"]
[Site "Online"]
[Date "2021.04.04"]
[Round "15.2"]
[White "Shuvalova, Polina"]
[Black "Liang, Awonder"]
[Result "0-1"]
[ECO "E97"]
[WhiteElo "2476"]
[BlackElo "2592"]
[Annotator "ChessBase"]
[PlyCount "70"]
[EventDate "2021.04.08"]
[EventType "tourn"]
[EventCountry "NET"]
[SourceTitle "playchess.com"]
[Source "ChessBase"]
[SourceQuality "1"]
[TimeControl "600+5"]

1. d4 {[%emt 0:00:00]} Nf6 {[%emt 0:00:00]} 2. c4 {[%emt 0:00:00]} g6 {[%emt 0:00:00]} 3. Nc3 {[%emt 0:00:00]} Bg7 {[%emt 0:00:00]} 4. e4 {[%emt 0:00:00]} d6 {[%emt 0:00:00]} 5. Nf3 {[%emt 0:00:00]} O-O {[%emt 0:00:00]} 6. Be2 {[%emt 0:00:01]} e5 {[%emt 0:00:01]} 7. O-O {[%emt 0:00:01]} Nc6 {[%emt 0:00:01]} 8. d5 {[%emt 0:00:01]} Ne7 {[%emt 0:00:01]} 9. Bg5 {[%emt 0:00:01]} h6 {[%emt 0:00:11]} 10. Bd2 {[%emt 0:00:03]} a5 {[%emt 0:00:59]} 11. Rc1 {[%emt 0:00:13]} c5 {[%emt 0:00:46]} 12. dxc6 {[%emt 0:00:46]} bxc6 {[%emt 0:00:02]} 13. c5 {[%emt 0:00:21]} d5 {[%emt 0:00:06]} 14. exd5 {[%emt 0:00:43]} Nfxd5 {[%emt 0:00:02]} 15. Bc4 {[%emt 0:02:42]} f5 {[%emt 0:00:46]} 16. Qe2 {[%emt 0:00:24]} e4 {[%emt 0:00:15]} 17. Ne1 {[%emt 0:00:02]} Kh7 {[%emt 0:00:09]} 18. Nc2 {[%emt 0:00:06]} Be6 {[%emt 0:00:48]} 19. f3 {[%emt 0:01:16]} Nxc3 {[%emt 0:02:00]} 20. Bxc3 {[%emt 0:00:05]} Bxc3 {[%emt 0:00:03]} 21. Bxe6 {[%emt 0:00:49]} Qd2 {[%emt 0:00:50]} 22. Rce1 {[%emt 0:01:34]} Qxe2 {[%emt 0:01:18]} 23. Rxe2 {[%emt 0:00:01]} Bxb2 {[%emt 0:00:01]} 24. fxe4 {[%emt 0:00:09]} f4 {[%emt 0:00:00]} 25. e5 {[%emt 0:00:07]} g5 {[%emt 0:00:15]} 26. a4 {[%emt 0:00:33]} Ng6 {[%emt 0:00:15]} 27. Rfe1 {[%emt 0:00:34]} Rae8 {[%emt 0:00:51]} 28. Bd7 {[%emt 0:00:18]} Rxe5 {[%emt 0:00:01]} 29. Bxc6 {[%emt 0:00:02]} Rxc5 {[%emt 0:00:08]} 30. Be4 {[%emt 0:00:56]} Kg7 {[%emt 0:00:02]} 31. Rd1 {[%emt 0:00:04]} Ne5 {[%emt 0:00:25]} 32. h3 {[%emt 0:00:23]} Rc4 {[%emt 0:00:31]} 33. Ne1 {[%emt 0:00:14]} Bd4+ {[%emt 0:00:11]} 34. Kh2 {[%emt 0:00:01]} Be3 {[%emt 0:00:02]} 35. Rd5 {[%emt 0:00:17]} Rxe4 {[%emt 0:00:02]} 0-1

[Event "Polgar Challenge 2021"]
[Site "Online"]
[Date "2021.04.04"]
[Round "15.4"]
[White "Gukesh D"]
[Black "Salimova, Nurgyul"]
[Result "1-0"]
[ECO "B12"]
[WhiteElo "2578"]
[BlackElo "2397"]
[Annotator "ChessBase"]
[PlyCount "133"]
[EventDate "2021.04.08"]
[EventType "tourn"]
[EventCountry "NET"]
[SourceTitle "playchess.com"]
[Source "ChessBase"]
[SourceQuality "1"]
[TimeControl "600+5"]

1. e4 {[%emt 0:00:00]} c6 {[%emt 0:00:00]} 2. d4 {[%emt 0:00:00]} d5 {[%emt 0:00:00]} 3. e5 {[%emt 0:00:00]} Bf5 {[%emt 0:00:02]} 4. Nf3 {[%emt 0:00:00]} e6 {[%emt 0:00:01]} 5. Be2 {[%emt 0:00:01]} Ne7 {[%emt 0:00:02]} 6. c3 {[%emt 0:00:04]} Nd7 {[%emt 0:00:31]} 7. O-O {[%emt 0:00:09]} Ng6 {[%emt 0:00:15]} 8. Ne1 {[%emt 0:00:02]} h5 {[%emt 0:00:41]} 9. Nc2 {[%emt 0:00:03]} c5 {[%emt 0:02:07]} 10. Ne3 {[%emt 0:00:17]} Bxb1 {[%emt 0:00:07]} 11. Rxb1 {[%emt 0:00:02]} Qb6 {[%emt 0:00:20]} 12. Bxh5 {[%emt 0:00:41]} O-O-O {[%emt 0:00:41]} 13. Re1 {[%emt 0:02:50]} cxd4 {[%emt 0:00:27]} 14. cxd4 {[%emt 0:00:04]} Bb4 {[%emt 0:00:02]} 15. Rf1 {[%emt 0:00:09]} Nf4 {[%emt 0:01:07]} 16. Bf3 {[%emt 0:01:05]} Kb8 {[%emt 0:00:15]} 17. Nc2 {[%emt 0:00:27]} Ng6 {[%emt 0:00:18]} 18. Nxb4 {[%emt 0:00:40]} Qxb4 {[%emt 0:00:00]} 19. g3 {[%emt 0:00:03]} Ne7 {[%emt 0:00:52]} 20. Qd3 {[%emt 0:00:13]} Nf5 {[%emt 0:01:03]} 21. Rd1 {[%emt 0:00:03]} f6 {[%emt 0:00:13]} 22. exf6 {[%emt 0:00:23]} gxf6 {[%emt 0:00:09]} 23. Bf4+ {[%emt 0:00:13]} Ka8 {[%emt 0:00:01]} 24. Bg4 {[%emt 0:00:07]} Ng7 {[%emt 0:00:24]} 25. Rbc1 {[%emt 0:00:55]} e5 {[%emt 0:00:54]} 26. Bd2 {[%emt 0:00:12]} Qd6 {[%emt 0:00:20]} 27. Qb3 {[%emt 0:01:17]} f5 {[%emt 0:00:28]} 28. dxe5 {[%emt 0:00:17]} Nxe5 {[%emt 0:00:04]} 29. Be2 {[%emt 0:00:02]} Ne6 {[%emt 0:00:08]} 30. Ba5 {[%emt 0:00:16]} Nf4 {[%emt 0:00:33]} 31. Qe3 {[%emt 0:01:35]} Nh3+ {[%emt 0:00:17]} 32. Kf1 {[%emt 0:00:07]} Rde8 {[%emt 0:00:07]} 33. Bc7 {[%emt 0:00:04]} Qf6 {[%emt 0:00:06]} 34. Qd4 {[%emt 0:00:09]} f4 {[%emt 0:00:07]} 35. Bxe5 {[%emt 0:00:04]} Rxe5 {[%emt 0:00:02]} 36. Rc5 {[%emt 0:00:14]} fxg3 {[%emt 0:00:07]} 37. hxg3 {[%emt 0:00:03]} Ng5 {[%emt 0:00:05]} 38. Qh4 {[%emt 0:00:07]} Rf8 {[%emt 0:00:03]} 39. Qf4 {[%emt 0:00:03]} Qe7 {[%emt 0:00:04]} 40. Rdc1 {[%emt 0:00:02]} b6 {[%emt 0:00:09]} 41. Qxf8+ {[%emt 0:00:04]} Qxf8 {[%emt 0:00:02]} 42. Rc8+ {[%emt 0:00:01]} Qxc8 {[%emt 0:00:01]} 43. Rxc8+ {[%emt 0:00:00]} Kb7 {[%emt 0:00:00]} 44. Rc2 {[%emt 0:00:02]} Ne6 {[%emt 0:00:08]} 45. Rd2 {[%emt 0:00:02]} Kc6 {[%emt 0:00:09]} 46. f4 {[%emt 0:00:04]} Re3 {[%emt 0:00:02]} 47. Kf2 {[%emt 0:00:01]} d4 {[%emt 0:00:02]} 48. Bf3+ {[%emt 0:00:02]} Kc5 {[%emt 0:00:05]} 49. a3 {[%emt 0:00:18]} Rb3 {[%emt 0:00:15]} 50. Bd1 {[%emt 0:00:08]} Re3 {[%emt 0:00:02]} 51. Bg4 {[%emt 0:00:08]} Nc7 {[%emt 0:00:06]} 52. Be2 {[%emt 0:00:06]} Ne6 {[%emt 0:00:04]} 53. b4+ {[%emt 0:00:04]} Kd5 {[%emt 0:00:07]} 54. Rc2 {[%emt 0:00:17]} Rxa3 {[%emt 0:00:02]} 55. Bc4+ {[%emt 0:00:04]} Kd6 {[%emt 0:00:02]} 56. Rd2 {[%emt 0:00:01]} Rc3 {[%emt 0:00:14]} 57. Bxe6 {[%emt 0:00:04]} Kxe6 {[%emt 0:00:00]} 58. Rxd4 {[%emt 0:00:00]} Kf5 {[%emt 0:00:05]} 59. Rd5+ {[%emt 0:00:02]} Kg4 {[%emt 0:00:08]} 60. Rg5+ {[%emt 0:00:04]} Kh3 {[%emt 0:00:01]} 61. b5 {[%emt 0:00:01]} Rb3 {[%emt 0:00:06]} 62. Rg7 {[%emt 0:00:15]} Rxb5 {[%emt 0:00:05]} 63. Rh7+ {[%emt 0:00:02]} Kg4 {[%emt 0:00:02]} 64. Rh4+ {[%emt 0:00:00]} Kf5 {[%emt 0:00:03]} 65. Rh5+ {[%emt 0:00:01]} Kg4 {[%emt 0:00:01]} 66. Rxb5 {[%emt 0:00:01]} a6 {[%emt 0:00:07]} 67. Rxb6 {[%emt 0:00:01]} 1-0

[Event "Polgar Challenge 2021"]
[Site "Online"]
[Date "2021.04.04"]
[Round "15.6"]
[White "Mendonca, Leon Luke"]
[Black "Yip, Carissa"]
[Result "1-0"]
[ECO "E61"]
[WhiteElo "2549"]
[BlackElo "2430"]
[Annotator "ChessBase"]
[PlyCount "95"]
[EventDate "2021.04.08"]
[EventType "tourn"]
[EventCountry "NET"]
[SourceTitle "playchess.com"]
[Source "ChessBase"]
[SourceQuality "1"]
[TimeControl "600+5"]

1. d4 {[%emt 0:00:00]} Nf6 {[%emt 0:00:00]} 2. c4 {[%emt 0:00:04]} g6 {[%emt 0:00:00]} 3. Nc3 {[%emt 0:00:03]} Bg7 {[%emt 0:00:00]} 4. Nf3 {[%emt 0:00:09]} O-O {[%emt 0:00:01]} 5. e3 {[%emt 0:00:02]} d6 {[%emt 0:00:05]} 6. Be2 {[%emt 0:00:02]} b6 {[%emt 0:00:10]} 7. O-O {[%emt 0:00:10]} Bb7 {[%emt 0:00:01]} 8. Qc2 {[%emt 0:00:52]} Nbd7 {[%emt 0:00:10]} 9. b3 {[%emt 0:00:26]} e5 {[%emt 0:00:07]} 10. Bb2 {[%emt 0:00:07]} Qe7 {[%emt 0:00:01]} 11. Rfd1 {[%emt 0:00:24]} Rad8 {[%emt 0:00:04]} 12. Rac1 {[%emt 0:01:25]} h6 {[%emt 0:00:25]} 13. dxe5 {[%emt 0:00:51]} Nxe5 {[%emt 0:00:21]} 14. Nd5 {[%emt 0:00:34]} Bxd5 {[%emt 0:01:19]} 15. cxd5 {[%emt 0:00:06]} Nxf3+ {[%emt 0:00:02]} 16. Bxf3 {[%emt 0:00:02]} Ne8 {[%emt 0:00:01]} 17. Bxg7 {[%emt 0:00:10]} Kxg7 {[%emt 0:00:01]} 18. Rd4 {[%emt 0:00:34]} f5 {[%emt 0:00:05]} 19. g3 {[%emt 0:00:15]} Rc8 {[%emt 0:00:13]} 20. Be2 {[%emt 0:00:17]} a5 {[%emt 0:00:11]} 21. Ba6 {[%emt 0:00:11]} Ra8 {[%emt 0:00:03]} 22. Bb5 {[%emt 0:00:06]} Rf7 {[%emt 0:00:05]} 23. Rc4 {[%emt 0:00:08]} Ra7 {[%emt 0:00:08]} 24. Bxe8 {[%emt 0:00:58]} Qxe8 {[%emt 0:00:00]} 25. Qc3+ {[%emt 0:00:20]} Kg8 {[%emt 0:00:03]} 26. Kg2 {[%emt 0:00:05]} Kh7 {[%emt 0:00:48]} 27. h4 {[%emt 0:00:11]} Qe7 {[%emt 0:00:07]} 28. Qd4 {[%emt 0:00:07]} Qe8 {[%emt 0:00:14]} 29. Qf4 {[%emt 0:00:21]} Qe7 {[%emt 0:00:35]} 30. Qd4 {[%emt 0:00:15]} Qe8 {[%emt 0:00:04]} 31. Kf1 {[%emt 0:00:52]} Qe7 {[%emt 0:00:13]} 32. Qc3 {[%emt 0:00:10]} Qe8 {[%emt 0:00:05]} 33. Ke2 {[%emt 0:00:04]} Qb5 {[%emt 0:00:25]} 34. Qd3 {[%emt 0:00:06]} Qe8 {[%emt 0:00:28]} 35. Kd2 {[%emt 0:00:22]} Kg8 {[%emt 0:00:25]} 36. Qc3 {[%emt 0:00:09]} Qb5 {[%emt 0:00:07]} 37. Qd3 {[%emt 0:00:06]} a4 {[%emt 0:00:43]} 38. Rxa4 {[%emt 0:00:26]} Ra5 {[%emt 0:00:08]} 39. Qxb5 {[%emt 0:00:06]} Rxb5 {[%emt 0:00:01]} 40. Rd4 {[%emt 0:00:01]} Re7 {[%emt 0:00:05]} 41. Rcc4 {[%emt 0:00:10]} Kf7 {[%emt 0:00:15]} 42. b4 {[%emt 0:00:15]} Re5 {[%emt 0:00:10]} 43. Rxc7+ {[%emt 0:00:09]} Kf6 {[%emt 0:00:02]} 44. Rc6 {[%emt 0:00:30]} Rexd5 {[%emt 0:00:05]} 45. Kc3 {[%emt 0:00:04]} Rxd4 {[%emt 0:00:08]} 46. exd4 {[%emt 0:00:00]} Ke6 {[%emt 0:00:10]} 47. a4 {[%emt 0:00:03]} Rd5 {[%emt 0:00:03]} 48. Rxb6 {[%emt 0:00:01]} 1-0

[Event "Polgar Challenge 2021"]
[Site "Online"]
[Date "2021.04.04"]
[Round "15.7"]
[White "Abdumalik, Zhansaya"]
[Black "Lei, Tingjie"]
[Result "1/2-1/2"]
[ECO "C65"]
[WhiteElo "2472"]
[BlackElo "2505"]
[Annotator "ChessBase"]
[PlyCount "141"]
[EventDate "2021.04.08"]
[EventType "tourn"]
[EventCountry "NET"]
[SourceTitle "playchess.com"]
[Source "ChessBase"]
[SourceQuality "1"]
[TimeControl "600+5"]

1. e4 {[%emt 0:00:00]} e5 {[%emt 0:00:00]} 2. Nf3 {[%emt 0:00:00]} Nc6 {[%emt 0:00:00]} 3. Bb5 {[%emt 0:00:00]} Nf6 {[%emt 0:00:00]} 4. d3 {[%emt 0:00:08]} Bc5 {[%emt 0:00:00]} 5. Nbd2 {[%emt 0:00:02]} O-O {[%emt 0:00:04]} 6. Nb3 {[%emt 0:00:05]} Bd6 {[%emt 0:00:02]} 7. O-O {[%emt 0:00:10]} a6 {[%emt 0:00:01]} 8. Bxc6 {[%emt 0:00:04]} dxc6 {[%emt 0:00:01]} 9. Na5 {[%emt 0:00:03]} Re8 {[%emt 0:00:33]} 10. b3 {[%emt 0:00:12]} c5 {[%emt 0:00:21]} 11. Bb2 {[%emt 0:00:17]} Nd7 {[%emt 0:01:35]} 12. Nc4 {[%emt 0:00:34]} Qe7 {[%emt 0:01:00]} 13. a4 {[%emt 0:00:26]} f6 {[%emt 0:00:11]} 14. Nh4 {[%emt 0:00:15]} Nf8 {[%emt 0:00:03]} 15. Nf5 {[%emt 0:00:29]} Bxf5 {[%emt 0:00:31]} 16. exf5 {[%emt 0:00:01]} b5 {[%emt 0:01:07]} 17. Nd2 {[%emt 0:00:35]} Nd7 {[%emt 0:00:03]} 18. Qf3 {[%emt 0:00:05]} Rab8 {[%emt 0:00:14]} 19. Rfe1 {[%emt 0:00:09]} Qf7 {[%emt 0:00:41]} 20. h3 {[%emt 0:00:30]} Nb6 {[%emt 0:00:11]} 21. axb5 {[%emt 0:00:21]} axb5 {[%emt 0:00:01]} 22. Ra5 {[%emt 0:00:43]} Nd5 {[%emt 0:01:02]} 23. Rea1 {[%emt 0:00:13]} Red8 {[%emt 0:00:39]} 24. Qe4 {[%emt 0:00:47]} Bf8 {[%emt 0:00:31]} 25. Qg4 {[%emt 0:01:41]} Nb4 {[%emt 0:00:13]} 26. Rc1 {[%emt 0:00:01]} Ra8 {[%emt 0:00:17]} 27. Rxa8 {[%emt 0:01:06]} Rxa8 {[%emt 0:00:03]} 28. Bc3 {[%emt 0:00:27]} Nd5 {[%emt 0:00:48]} 29. Ra1 {[%emt 0:00:07]} Rxa1+ {[%emt 0:00:13]} 30. Bxa1 {[%emt 0:00:02]} Nb4 {[%emt 0:00:13]} 31. c4 {[%emt 0:00:32]} c6 {[%emt 0:00:26]} 32. f4 {[%emt 0:01:07]} exf4 {[%emt 0:00:56]} 33. Ne4 {[%emt 0:00:07]} Kh8 {[%emt 0:00:03]} 34. Qxf4 {[%emt 0:00:30]} Nxd3 {[%emt 0:00:17]} 35. Qb8 {[%emt 0:00:04]} h6 {[%emt 0:00:01]} 36. cxb5 {[%emt 0:00:10]} cxb5 {[%emt 0:00:01]} 37. Qxb5 {[%emt 0:00:01]} Nf4 {[%emt 0:00:19]} 38. Qf1 {[%emt 0:00:21]} Qc7 {[%emt 0:00:11]} 39. Qc4 {[%emt 0:00:12]} Qa7 {[%emt 0:00:06]} 40. Bc3 {[%emt 0:00:07]} Qa2 {[%emt 0:00:07]} 41. Bd2 {[%emt 0:00:05]} Qa1+ {[%emt 0:00:09]} 42. Kh2 {[%emt 0:00:20]} Qe5 {[%emt 0:00:01]} 43. g3 {[%emt 0:00:11]} Nd5 {[%emt 0:00:04]} 44. Kg2 {[%emt 0:00:07]} Kh7 {[%emt 0:00:03]} 45. Qd3 {[%emt 0:00:01]} Nb4 {[%emt 0:00:06]} 46. Qb1 {[%emt 0:00:03]} Kh8 {[%emt 0:00:07]} 47. Nf2 {[%emt 0:00:03]} Qd5+ {[%emt 0:00:04]} 48. Ne4 {[%emt 0:00:02]} Nd3 {[%emt 0:00:04]} 49. Kf3 {[%emt 0:00:02]} Qxf5+ {[%emt 0:00:02]} 50. Ke3 {[%emt 0:00:01]} Nb4 {[%emt 0:00:15]} 51. g4 {[%emt 0:00:04]} Nd5+ {[%emt 0:00:02]} 52. Ke2 {[%emt 0:00:01]} Qe5 {[%emt 0:00:02]} 53. Kf3 {[%emt 0:00:03]} f5 {[%emt 0:00:02]} 54. Nf2 {[%emt 0:00:03]} fxg4+ {[%emt 0:00:07]} 55. Nxg4 {[%emt 0:00:08]} Qh5 {[%emt 0:00:05]} 56. Kg2 {[%emt 0:00:04]} Qe8 {[%emt 0:00:02]} 57. Qd3 {[%emt 0:00:03]} Nc7 {[%emt 0:00:14]} 58. Qf3 {[%emt 0:00:03]} Bd6 {[%emt 0:00:05]} 59. Bc3 {[%emt 0:00:01]} Ne6 {[%emt 0:00:06]} 60. Nxh6 {[%emt 0:00:26]} Qg6+ {[%emt 0:00:02]} 61. Ng4 {[%emt 0:00:01]} Nf4+ {[%emt 0:00:02]} 62. Kf1 {[%emt 0:00:09]} Qb1+ {[%emt 0:00:02]} 63. Be1 {[%emt 0:00:01]} Qf5 {[%emt 0:00:16]} 64. Nf2 {[%emt 0:00:02]} Qe6 {[%emt 0:00:04]} 65. Qa8+ {[%emt 0:00:03]} Kh7 {[%emt 0:00:01]} 66. Qe4+ {[%emt 0:00:01]} Qxe4 {[%emt 0:00:01]} 67. Nxe4 {[%emt 0:00:00]} Be7 {[%emt 0:00:03]} 68. Bd2 {[%emt 0:00:06]} Nd5 {[%emt 0:00:10]} 69. Kf2 {[%emt 0:00:02]} Kg6 {[%emt 0:00:03]} 70. Kf3 {[%emt 0:00:08]} Kf5 {[%emt 0:00:08]} 71. Nc3 {[%emt 0:00:01]} 1/2-1/2

[Event "Polgar Challenge 2021"]
[Site "Online"]
[Date "2021.04.04"]
[Round "15.8"]
[White "Khademalsharieh, Sarasadat"]
[Black "Badelka, Olga"]
[Result "1/2-1/2"]
[ECO "A13"]
[WhiteElo "2494"]
[BlackElo "2433"]
[Annotator "ChessBase"]
[PlyCount "104"]
[EventDate "2021.04.08"]
[EventType "tourn"]
[EventCountry "NET"]
[SourceTitle "playchess.com"]
[Source "ChessBase"]
[SourceQuality "1"]
[TimeControl "600+5"]

1. Nf3 {[%emt 0:00:00]} Nf6 {[%emt 0:00:00]} 2. e3 {[%emt 0:00:02]} d5 {[%emt 0:00:00]} 3. c4 {[%emt 0:00:01]} e6 {[%emt 0:00:06]} 4. b3 {[%emt 0:00:02]} c5 {[%emt 0:00:05]} 5. cxd5 {[%emt 0:00:02]} exd5 {[%emt 0:00:06]} 6. d4 {[%emt 0:00:13]} Nc6 {[%emt 0:00:02]} 7. Be2 {[%emt 0:00:29]} Bg4 {[%emt 0:00:14]} 8. dxc5 {[%emt 0:00:13]} Bxc5 {[%emt 0:00:06]} 9. O-O {[%emt 0:00:03]} O-O {[%emt 0:00:28]} 10. Bb2 {[%emt 0:00:04]} Re8 {[%emt 0:00:26]} 11. Nc3 {[%emt 0:00:43]} Rc8 {[%emt 0:00:29]} 12. Nb5 {[%emt 0:00:07]} a6 {[%emt 0:00:29]} 13. Nbd4 {[%emt 0:00:01]} Ne4 {[%emt 0:00:42]} 14. Rc1 {[%emt 0:00:03]} Qb6 {[%emt 0:00:44]} 15. h3 {[%emt 0:01:10]} Bd7 {[%emt 0:00:17]} 16. Nxc6 {[%emt 0:00:11]} bxc6 {[%emt 0:00:21]} 17. Bd4 {[%emt 0:00:38]} Bxd4 {[%emt 0:00:13]} 18. Qxd4 {[%emt 0:00:04]} Qxd4 {[%emt 0:00:16]} 19. exd4 {[%emt 0:00:02]} f6 {[%emt 0:01:40]} 20. Bd3 {[%emt 0:00:29]} a5 {[%emt 0:00:32]} 21. Rc2 {[%emt 0:00:28]} Ra8 {[%emt 0:00:28]} 22. Nd2 {[%emt 0:01:06]} Nxd2 {[%emt 0:00:26]} 23. Rxd2 {[%emt 0:00:02]} a4 {[%emt 0:00:02]} 24. bxa4 {[%emt 0:00:42]} Rxa4 {[%emt 0:00:02]} 25. Bc2 {[%emt 0:00:03]} Rb4 {[%emt 0:00:26]} 26. Bb3 {[%emt 0:00:10]} Kf7 {[%emt 0:00:56]} 27. f3 {[%emt 0:00:03]} f5 {[%emt 0:00:15]} 28. Kf2 {[%emt 0:00:11]} f4 {[%emt 0:00:05]} 29. Re1 {[%emt 0:00:11]} Rxe1 {[%emt 0:00:12]} 30. Kxe1 {[%emt 0:00:01]} Ke7 {[%emt 0:00:11]} 31. Kd1 {[%emt 0:00:06]} Bf5 {[%emt 0:00:28]} 32. Kc1 {[%emt 0:00:02]} Kd6 {[%emt 0:00:25]} 33. Kb2 {[%emt 0:00:02]} Rb7 {[%emt 0:00:18]} 34. Re2 {[%emt 0:00:16]} Bd3 {[%emt 0:00:05]} 35. Re5 {[%emt 0:00:35]} h6 {[%emt 0:00:11]} 36. h4 {[%emt 0:00:31]} Re7 {[%emt 0:00:20]} 37. Kc3 {[%emt 0:00:04]} Bf1 {[%emt 0:00:04]} 38. Rf5 {[%emt 0:00:07]} Bxg2 {[%emt 0:00:22]} 39. Rxf4 {[%emt 0:00:01]} g5 {[%emt 0:00:12]} 40. hxg5 {[%emt 0:00:25]} hxg5 {[%emt 0:00:00]} 41. Rg4 {[%emt 0:00:21]} Bxf3 {[%emt 0:00:03]} 42. Rxg5 {[%emt 0:00:01]} Kc7 {[%emt 0:00:04]} 43. Kb4 {[%emt 0:00:08]} Kb6 {[%emt 0:00:02]} 44. a4 {[%emt 0:00:03]} Ra7 {[%emt 0:00:22]} 45. Rg6 {[%emt 0:00:11]} Be4 {[%emt 0:00:02]} 46. Rf6 {[%emt 0:00:03]} Ra8 {[%emt 0:00:03]} 47. Bd1 {[%emt 0:00:10]} Ra7 {[%emt 0:00:04]} 48. Bg4 {[%emt 0:00:04]} Bd3 {[%emt 0:00:05]} 49. Bh5 {[%emt 0:00:05]} Bc2 {[%emt 0:00:03]} 50. a5+ {[%emt 0:00:31]} Rxa5 {[%emt 0:00:01]} 51. Rxc6+ {[%emt 0:00:01]} Kxc6 {[%emt 0:00:01]} 52. Kxa5 {[%emt 0:00:05]} Be4 {[%emt 0:00:03]} 1/2-1/2

[Event "Polgar Challenge 2021"]
[Site "Online"]
[Date "2021.04.04"]
[Round "15.10"]
[White "Murzin, Volodar"]
[Black "Mammadzada, Gunay"]
[Result "1-0"]
[ECO "B53"]
[WhiteElo "2478"]
[BlackElo "2443"]
[Annotator "ChessBase"]
[PlyCount "85"]
[EventDate "2021.04.08"]
[EventType "tourn"]
[EventCountry "NET"]
[SourceTitle "playchess.com"]
[Source "ChessBase"]
[SourceQuality "1"]
[TimeControl "600+5"]

1. e4 {[%emt 0:00:00]} c5 {[%emt 0:00:00]} 2. Nf3 {[%emt 0:00:00]} d6 {[%emt 0:00:00]} 3. d4 {[%emt 0:00:00]} cxd4 {[%emt 0:00:00]} 4. Qxd4 {[%emt 0:00:02]} Nf6 {[%emt 0:00:01]} 5. Be2 {[%emt 0:00:03]} Nc6 {[%emt 0:00:23]} 6. Qe3 {[%emt 0:00:03]} g6 {[%emt 0:00:01]} 7. O-O {[%emt 0:00:02]} Bg7 {[%emt 0:00:08]} 8. Rd1 {[%emt 0:00:02]} O-O {[%emt 0:00:11]} 9. Nc3 {[%emt 0:00:03]} Nd7 {[%emt 0:00:53]} 10. Nd5 {[%emt 0:00:47]} a6 {[%emt 0:00:10]} 11. c3 {[%emt 0:00:25]} b6 {[%emt 0:01:07]} 12. Qf4 {[%emt 0:00:56]} Bb7 {[%emt 0:00:19]} 13. Qg3 {[%emt 0:00:05]} Nce5 {[%emt 0:01:01]} 14. Bg5 {[%emt 0:00:51]} Re8 {[%emt 0:02:50]} 15. Nxe5 {[%emt 0:00:40]} Bxe5 {[%emt 0:00:08]} 16. Qh4 {[%emt 0:00:24]} Bxd5 {[%emt 0:00:11]} 17. exd5 {[%emt 0:00:11]} Bf6 {[%emt 0:00:04]} 18. a4 {[%emt 0:00:08]} Qc7 {[%emt 0:00:26]} 19. Rd3 {[%emt 0:00:54]} Bxg5 {[%emt 0:01:14]} 20. Qxg5 {[%emt 0:00:03]} Nf6 {[%emt 0:00:01]} 21. Rd4 {[%emt 0:00:09]} Kg7 {[%emt 0:00:53]} 22. Rad1 {[%emt 0:00:22]} Qc5 {[%emt 0:00:18]} 23. Rc4 {[%emt 0:01:17]} Qa5 {[%emt 0:00:19]} 24. Qd2 {[%emt 0:00:16]} Rec8 {[%emt 0:00:35]} 25. Rd4 {[%emt 0:00:10]} b5 {[%emt 0:00:06]} 26. axb5 {[%emt 0:01:23]} axb5 {[%emt 0:00:00]} 27. h3 {[%emt 0:00:06]} Rab8 {[%emt 0:00:12]} 28. Bf1 {[%emt 0:00:28]} Rc7 {[%emt 0:00:25]} 29. Qe1 {[%emt 0:00:11]} Qa2 {[%emt 0:00:06]} 30. Qd2 {[%emt 0:01:28]} Rc5 {[%emt 0:00:05]} 31. f4 {[%emt 0:00:40]} b4 {[%emt 0:00:20]} 32. cxb4 {[%emt 0:00:02]} Rc7 {[%emt 0:00:03]} 33. b5 {[%emt 0:00:02]} Qa7 {[%emt 0:00:03]} 34. Kh2 {[%emt 0:00:08]} Rbc8 {[%emt 0:00:01]} 35. Qb4 {[%emt 0:00:12]} Qb6 {[%emt 0:00:02]} 36. Ra1 {[%emt 0:00:13]} Rc1 {[%emt 0:00:03]} 37. Ra6 {[%emt 0:00:03]} Qb7 {[%emt 0:00:15]} 38. Be2 {[%emt 0:00:02]} h5 {[%emt 0:00:08]} 39. Rc6 {[%emt 0:00:08]} h4 {[%emt 0:00:05]} 40. Bf3 {[%emt 0:00:07]} Kh7 {[%emt 0:00:03]} 41. Qd2 {[%emt 0:00:06]} Ra1 {[%emt 0:00:04]} 42. f5 {[%emt 0:00:02]} Rca8 {[%emt 0:00:13]} 43. Rxh4+ {[%emt 0:00:01]} 1-0

[Event "Polgar Challenge 2021"]
[Site "Online"]
[Date "2021.04.04"]
[Round "16.4"]
[White "Lei, Tingjie"]
[Black "Khademalsharieh, Sarasadat"]
[Result "1-0"]
[ECO "E04"]
[WhiteElo "2505"]
[BlackElo "2494"]
[Annotator "ChessBase"]
[PlyCount "53"]
[EventDate "2021.04.08"]
[EventType "tourn"]
[EventCountry "NET"]
[SourceTitle "playchess.com"]
[Source "ChessBase"]
[SourceQuality "1"]
[TimeControl "600+5"]

1. d4 {[%emt 0:00:00]} Nf6 {[%emt 0:00:00]} 2. c4 {[%emt 0:00:00]} e6 {[%emt 0:00:00]} 3. g3 {[%emt 0:00:00]} d5 {[%emt 0:00:02]} 4. Bg2 {[%emt 0:00:02]} Bb4+ {[%emt 0:00:02]} 5. Bd2 {[%emt 0:00:03]} a5 {[%emt 0:00:01]} 6. Nf3 {[%emt 0:00:15]} dxc4 {[%emt 0:00:40]} 7. Qc2 {[%emt 0:00:26]} c5 {[%emt 0:00:57]} 8. Qxc4 {[%emt 0:00:42]} Bxd2+ {[%emt 0:01:21]} 9. Nbxd2 {[%emt 0:00:04]} cxd4 {[%emt 0:00:01]} 10. Nxd4 {[%emt 0:00:01]} O-O {[%emt 0:00:02]} 11. N2f3 {[%emt 0:01:32]} Qb6 {[%emt 0:00:46]} 12. O-O {[%emt 0:00:26]} Bd7 {[%emt 0:01:15]} 13. Ne5 {[%emt 0:00:44]} Rc8 {[%emt 0:00:03]} 14. Qd3 {[%emt 0:00:11]} Be8 {[%emt 0:00:07]} 15. Rfd1 {[%emt 0:02:14]} Nbd7 {[%emt 0:02:06]} 16. Nc4 {[%emt 0:00:42]} Qa6 {[%emt 0:00:09]} 17. Rac1 {[%emt 0:00:05]} Nc5 {[%emt 0:00:46]} 18. Qf3 {[%emt 0:00:27]} Nce4 {[%emt 0:00:22]} 19. Qd3 {[%emt 0:00:39]} Nc5 {[%emt 0:00:15]} 20. Qa3 {[%emt 0:00:07]} a4 {[%emt 0:00:23]} 21. Rc2 {[%emt 0:01:28]} Rab8 {[%emt 0:00:11]} 22. Rdc1 {[%emt 0:00:07]} Nd5 {[%emt 0:01:31]} 23. Ne5 {[%emt 0:00:19]} b6 {[%emt 0:00:31]} 24. b4 {[%emt 0:00:17]} Nd7 {[%emt 0:00:02]} 25. Nec6 {[%emt 0:00:15]} N7f6 {[%emt 0:00:19]} 26. b5 {[%emt 0:00:07]} Qb7 {[%emt 0:00:14]} 27. e4 {[%emt 0:00:01]} 1-0